bitfinex/quotes_SOLUSD_20251212
["timestamp","ask_amount","ask_price","bid_price","bid_amount"]
[1765552730903,0.72,137.37,137.3,7.28317182]
[1765552730904,7.87384347,137.34,137.3,7.28317182]
[1765552731108,8.7,137.33,137.3,7.28317182]
[1765552732108,8.7,137.33,137.29,7.2838517]
[1765552732510,8.7,137.33,137.29,33.36732442]
[1765552732720,8.7,137.33,137.29,34.02732442]
[1765552732914,7.98,137.33,137.3,7.87384347]
[1765552733117,7.98,137.33,137.31,7.87384347]
[1765552733298,7.98,137.33,137.32,7.87384347]
[1765552733507,7.98,137.33,137.32,8.53384347]
[1765552734115,7.98,137.33,137.3,18.20710457]
[1765552734442,7.98,137.33,137.31,7.28245386]
[1765552735125,7.98,137.33,137.32,7.28226041]
[1765552735513,7.98,137.33,137.32,15.15610388]
[1765552735707,7.98,137.33,137.32,15.81610388]
[1765552735912,7.99946511,137.38,137.32,34.02175491]
[1765552736214,7.98,137.37,137.32,26.14791144]
[1765552736405,7.98,137.37,137.33,7.87384347]
[1765552736610,7.98,137.37,137.32,26.14791144]
[1765552736611,0.72,137.36,137.32,33.36175491]
[1765552736934,7.87384347,137.35,137.31,7.28258617]
[1765552737102,7.87384347,137.35,137.3,7.2832014]
[1765552737305,0.72,137.34,137.3,7.2832014]
[1765552737511,7.98,137.33,137.29,7.28373363]
[1765552738125,0.72,137.32,137.29,7.28373363]
[1765552738711,0.72,137.39,137.31,7.87384347]
[1765552738945,0.72,137.38,137.3,9.75426806]
[1765552739141,21.64093467,137.38,137.32,7.87384347]
[1765552739429,13.7670912,137.38,137.34,7.87384347]
[1765552739640,0.72,137.38,137.35,7.87384347]
[1765552739805,7.98,137.39,137.35,7.87384347]
[1765552740006,21.7470912,137.39,137.36,7.87384347]
[1765552740228,7.98,137.39,137.36,15.15397111]
[1765552740628,7.98,137.39,137.37,0.66]
[1765552740839,7.98,137.39,137.38,7.87384347]
[1765552741437,7.98,137.39,137.36,7.28012764]
[1765552741636,7.98,137.39,137.27,0.66]
[1765552741637,7.87384347,137.37,137.27,0.66]
[1765552741826,13.0470912,137.36,137.28,0.66]
[1765552742026,7.98,137.35,137.29,25.49268607]
[1765552742349,7.98,137.35,137.32,7.88356191]
[1765552742528,7.98,137.35,137.34,7.88356191]
[1765552742723,7.98,137.35,137.33,7.88356191]
[1765552742911,7.98,137.35,137.34,7.88356191]
[1765552743245,7.27763455,137.41,137.34,7.88356191]
[1765552743423,7.98,137.4,137.37,7.88356191]
[1765552743631,7.98,137.4,137.32,13.0470912]
[1765552743632,16.58356191,137.4,137.32,13.7070912]
[1765552743816,8.60356191,137.39,137.32,12.7070912]
[1765552744012,7.27907992,137.38,137.32,19.9889364]
[1765552744235,15.88264183,137.38,137.33,7.88356191]
[1765552744429,0.72,137.37,137.33,7.88356191]
[1765552744635,7.98,137.36,137.33,7.88356191]
[1765552745019,8.7,137.36,137.34,7.88356191]
[1765552745335,103.0,137.43,137.35,7.88356191]
[1765552745540,7.98,137.42,137.39,7.88356191]
[1765552745728,7.98,137.42,137.4,7.88356191]
[1765552745729,8.7,137.42,137.4,7.88356191]
[1765552746042,8.7,137.42,137.39,7.88356191]
[1765552746247,8.7,137.42,137.39,15.16193036]
[1765552746452,0.72,137.41,137.39,15.16193036]
[1765552746616,0.72,137.41,137.35,13.5570912]
[1765552746821,0.72,137.41,137.29,0.51]
[1765552746822,7.88356191,137.39,137.29,0.51]
[1765552747021,13.7670912,137.41,137.33,28.2122536]
[1765552747022,15.86356191,137.38,137.33,28.2122536]
[1765552747336,15.86356191,137.38,137.33,7.28160049]
[1765552747530,0.72,137.37,137.33,15.1651624]
[1765552747731,0.72,137.37,137.33,7.28160049]
[1765552747931,0.72,137.37,137.33,7.88356191]
[1765552748131,0.72,137.37,137.31,15.16635267]
[1765552748331,0.72,137.37,137.31,25.99976767]
[1765552748520,7.98,137.38,137.35,7.88356191]
[1765552748719,7.98,137.38,137.37,7.88356191]
[1765552748919,0.72,137.42,137.37,7.88356191]
[1765552749226,7.98,137.41,137.4,7.88356191]
[1765552749424,7.98,137.42,137.4,7.88356191]
[1765552749620,0.72,137.45,137.41,7.88356191]
[1765552749838,8.7,137.45,137.43,7.88356191]
[1765552750043,7.98,137.45,137.44,7.88356191]
[1765552750728,8.7,137.45,137.41,7.27704761]
[1765552750937,0.72,137.44,137.41,7.27704761]
[1765552751149,0.72,137.44,137.41,15.16060952]
[1765552751335,8.60356191,137.44,137.38,18.19730656]
[1765552751534,7.88356191,137.43,137.37,13.0470912]
[1765552751725,0.72,137.43,137.39,15.16208984]
[1765552752045,0.72,137.42,137.39,15.16208984]
[1765552752437,7.98,137.45,137.41,7.88356191]
[1765552752438,8.7,137.45,137.41,7.88356191]
[1765552752641,8.7,137.45,137.39,25.98490321]
[1765552752642,0.72,137.44,137.39,25.98490321]
[1765552752944,7.98,137.45,137.43,7.88356191]
[1765552753248,0.72,137.5,137.44,7.88356191]
[1765552753451,7.98,137.49,137.47,7.88356191]
[1765552753660,7.98,137.49,137.45,7.88356191]
[1765552753950,7.88356191,137.47,137.4,13.0470912]
[1765552754150,0.72,137.48,137.42,7.88356191]
[1765552754151,8.60356191,137.48,137.42,7.88356191]
[1765552754464,0.72,137.47,137.43,7.88356191]
[1765552755350,0.72,137.47,137.43,7.2760746]
[1765552755552,7.99479116,137.47,137.42,15.16045551]
[1765552755864,0.72,137.46,137.42,15.16045551]
[1765552756062,7.98,137.45,137.42,15.16045551]
[1765552756428,8.7,137.45,137.42,7.2768936]
[1765552756654,0.72,137.44,137.42,15.16045551]
[1765552756838,7.98,137.45,137.42,15.16045551]
[1765552757026,8.7,137.45,137.42,7.88356191]
[1765552757223,0.69,137.44,137.4,7.27802037]
[1765552757545,0.69,137.44,137.4,15.16158228]
[1765552757854,0.69,137.44,137.41,7.88356191]
[1765552758031,7.98,137.45,137.4,7.78802037]
[1765552758231,8.67,137.45,137.42,7.88356191]
[1765552758546,0.68,137.44,137.4,7.27802037]
[1765552758739,8.56356191,137.44,137.38,7.88356191]
[1765552758939,7.27643163,137.43,137.38,15.16226921]
[1765552759131,7.95643163,137.43,137.38,15.16226921]
[1765552759333,15.83999354,137.43,137.38,7.2787073]
[1765552759642,7.88356191,137.42,137.37,7.88356191]
[1765552759838,7.98,137.41,137.37,15.16275853]
[1765552760038,7.98,137.41,137.38,15.16258894]
[1765552760453,7.98,137.41,137.39,7.88356191]
[1765552760758,7.98,137.41,137.4,7.88356191]
[1765552761264,7.98,137.41,137.38,7.88356191]
[1765552761563,7.98,137.41,137.38,7.27899186]
[1765552761856,7.98,137.41,137.39,7.27835769]
[1765552762062,7.98,137.41,137.38,15.16261095]
[1765552762447,7.98,137.41,137.39,7.2784318]
[1765552762863,7.98,137.41,137.4,15.16158228]
[1765552763558,7.27387033,137.48,137.4,33.35663322]
[1765552763741,7.98,137.46,137.43,7.88356191]
[1765552764359,0.1,137.55,137.45,7.88356191]
[1765552764563,0.1,137.55,137.45,0.28432314]
[1765552764564,7.98,137.54,137.45,0.28432314]
[1765552764758,7.98,137.54,137.48,7.88356191]
[1765552764759,7.88356191,137.53,137.48,7.88356191]
[1765552764965,15.86356191,137.54,137.49,7.88356191]
[1765552765139,23.13417409,137.54,137.49,15.15662309]
[1765552765336,15.25061218,137.54,137.49,15.15662309]
[1765552765540,23.13417409,137.54,137.49,15.15662309]
[1765552765750,23.13417409,137.54,137.49,7.27306118]
[1765552766150,23.13417409,137.54,137.48,7.27378527]
[1765552766362,7.88356191,137.53,137.48,7.27378527]
[1765552766863,33.42714264,137.54,137.46,7.88356191]
[1765552766864,41.31070455,137.54,137.47,7.88356191]
[1765552767264,7.88356191,137.53,137.46,26.06972532]
[1765552767656,23.13417409,137.54,137.47,33.34347304]
[1765552767857,23.13417409,137.54,137.48,7.88356191]
[1765552768060,7.88356191,137.52,137.47,7.27412515]
[1765552768361,7.98,137.54,137.48,7.88356191]
[1765552768945,15.86356191,137.54,137.48,7.88356191]
[1765552769380,7.88356191,137.49,137.4,36.39010189]
[1765552769549,7.96,137.48,137.43,7.88356191]
[1765552769953,7.96,137.48,137.44,7.27576297]
[1765552770356,7.88356191,137.47,137.43,7.27633124]
[1765552770569,15.23392856,137.48,137.4,18.19457152]
[1765552770769,7.88356191,137.46,137.4,26.07813343]
[1765552771068,15.23392856,137.48,137.43,7.27640025]
[1765552771243,23.11749047,137.48,137.43,7.27640025]
[1765552771447,15.23392856,137.48,137.43,15.15996216]
[1765552771863,7.96,137.48,137.43,15.15996216]
[1765552772261,7.96,137.48,137.43,33.35104125]
[1765552772658,7.96,137.48,137.46,7.88356191]
[1765552772860,7.96,137.48,137.44,9.09426806]
[1765552773058,7.96,137.48,137.46,7.88356191]
[1765552773774,7.96,137.48,137.45,7.88356191]
[1765552774277,7.96,137.48,137.47,7.27431439]
[1765552774469,7.96,137.48,137.44,18.18859066]
[1765552774667,7.96,137.48,137.46,7.27477779]
[1765552774864,7.96,137.48,137.46,15.1583397]
[1765552775061,7.96,137.48,137.46,7.27477779]
[1765552775376,7.37026144,137.55,137.47,7.88356191]
[1765552775566,7.37026144,137.55,137.48,8.80994492]
[1765552775567,0.1,137.55,137.48,8.80994492]
[1765552775768,21.1070912,137.55,137.52,7.88356191]
[1765552776076,8.06,137.55,137.51,7.88356191]
[1765552776370,15.33020414,137.55,137.5,7.88356191]
[1765552776573,15.33020414,137.55,137.51,7.88356191]
[1765552776876,15.33020414,137.55,137.5,15.15624563]
[1765552777482,8.06,137.55,137.51,7.88356191]
[1765552777856,8.06,137.55,137.52,7.88356191]
[1765552778053,8.06,137.55,137.53,7.88356191]
[1765552778254,8.06,137.55,137.54,7.88356191]
[1765552778480,8.06,137.55,137.53,7.88356191]
[1765552778684,8.06,137.55,137.54,7.88356191]
[1765552778874,0.1,137.55,137.54,7.88356191]
[1765552779076,0.1,137.55,137.54,16.69350683]
[1765552779378,0.1,137.56,137.55,8.80994492]
[1765552779379,1e-08,137.56,137.55,8.80994492]
[1765552779581,1e-08,137.56,137.55,24.24791357]
[1765552779785,1e-08,137.56,137.55,29.41144286]
[1765552780363,1e-08,137.56,137.55,20.3171748]
[1765552780564,1e-08,137.56,137.55,28.16797322]
[1765552781181,1e-08,137.56,137.55,37.26224128]
[1765552782578,7.96,137.62,137.59,13.0470912]
[1765552782775,7.96,137.62,137.61,7.85079842]
[1765552783496,7.96,137.62,137.59,7.85079842]
[1765552783796,7.96,137.62,137.58,15.11929674]
[1765552784019,7.96,137.62,137.58,7.26849832]
[1765552784288,15.22652016,137.62,137.58,7.26849832]
[1765552784581,15.2266209,137.62,137.58,7.26849832]
[1765552784959,7.96,137.62,137.58,7.26849832]
[1765552785387,7.96,137.62,137.58,15.11929674]
[1765552785964,7.96,137.62,137.58,20.02463846]
[1765552786897,7.96,137.62,137.58,7.26849832]
[1765552787407,15.22638937,137.62,137.58,7.26849832]
[1765552787578,15.22638937,137.62,137.56,7.26942722]
[1765552787579,27.98252951,137.62,137.56,7.26942722]
[1765552788073,33.39235361,137.62,137.56,7.26942722]
[1765552788262,15.22638937,137.62,137.56,12.75614014]
[1765552788466,15.22638937,137.62,137.57,7.26884092]
[1765552788695,15.22638937,137.62,137.57,20.02498106]
[1765552789281,12.75614014,137.6,137.54,20.31729272]
[1765552789496,25.80323134,137.61,137.55,20.02606155]
[1765552789699,12.75614014,137.58,137.51,18.18033253]
[1765552789998,7.96,137.57,137.52,12.75614014]
[1765552790169,7.96,137.57,137.51,18.18033253]
[1765552790369,7.96,137.57,137.53,12.75614014]
[1765552790795,7.96,137.57,137.54,7.27053599]
[1765552791510,15.2291233,137.57,137.53,7.27101356]
[1765552791980,27.98526344,137.57,137.53,7.27101356]
[1765552792310,27.98526344,137.57,137.52,7.27153167]
[1765552792311,33.40168999,137.57,137.52,7.27153167]
[1765552792602,15.2291233,137.57,137.52,12.75614014]
[1765552792771,7.96,137.57,137.53,7.27109654]
[1765552792967,7.96,137.57,137.53,20.02723668]
[1765552794093,7.96,137.57,137.52,7.27157378]
[1765552794778,7.96,137.57,137.52,20.02771392]
[1765552795180,7.96,137.57,137.53,12.75614014]
[1765552795381,110.26761829,137.6,137.54,12.75614014]
[1765552795700,110.26761829,137.6,137.52,25.45074771]
[1765552795701,7.96,137.59,137.53,12.75614014]
[1765552795910,7.96,137.59,137.54,12.75614014]
[1765552796298,7.96,137.59,137.55,12.75614014]
[1765552796610,7.96,137.59,137.54,25.44714264]
[1765552796797,7.96,137.59,137.55,12.75614014]
[1765552797308,7.96,137.59,137.56,12.75614014]
[1765552797677,7.96,137.59,137.55,12.75614014]
[1765552797877,20.71614014,137.59,137.54,7.27061218]
[1765552798076,12.75614014,137.58,137.53,7.27111753]
[1765552798485,12.75614014,137.58,137.52,7.27149911]
[1765552798825,7.2695551,137.56,137.51,12.75614014]
[1765552799120,7.96,137.55,137.5,43.98459965]
[1765552799424,7.96,137.55,137.48,7.27359421]
[1765552799425,25.80323134,137.53,137.48,7.27359421]
[1765552799921,13.0470912,137.53,137.49,12.75614014]
[1765552800081,7.96,137.55,137.49,12.75614014]
[1765552800286,7.96,137.55,137.5,12.75614014]
[1765552800729,7.96,137.55,137.51,7.27219838]
[1765552801023,7.96,137.55,137.51,25.45269434]
[1765552801225,7.96,137.55,137.5,7.27259604]
[1765552801388,7.96,137.55,137.47,58.36868249]
[1765552801389,12.75614014,137.53,137.47,12.75614014]
[1765552801591,7.96,137.55,137.46,13.0470912]
[1765552801812,7.96,137.55,137.47,12.75614014]
[1765552802121,25.80323134,137.52,137.45,12.75614014]
[1765552802423,20.71614014,137.51,137.46,7.27445389]
[1765552802718,20.71614014,137.51,137.44,25.80323134]
[1765552802719,20.02958426,137.49,137.44,7.27590221]
[1765552802940,7.27344412,137.49,137.44,7.27590221]
[1765552803289,7.96,137.48,137.42,12.75614014]
[1765552803491,20.71614014,137.48,137.43,7.2763167]
[1765552803884,7.96,137.48,137.43,20.03245684]
[1765552804088,7.96,137.48,137.46,12.75614014]
[1765552804319,7.96,137.48,137.44,12.75614014]
[1765552804812,13.0470912,137.53,137.47,12.75614014]
[1765552805028,7.96,137.52,137.48,12.75614014]
[1765552805908,7.96,137.52,137.46,13.0470912]
[1765552806087,7.96,137.52,137.47,12.75614014]
[1765552806291,7.96,137.52,137.48,7.27378527]
[1765552806493,7.96,137.52,137.47,30.94158176]
[1765552806494,27.98784291,137.52,137.47,7.2742483]
[1765552807204,7.96,137.52,137.47,7.2742483]
[1765552807411,15.23175576,137.52,137.47,7.2742483]
[1765552807602,7.96,137.52,137.47,20.03038844]
[1765552807914,7.96,137.52,137.47,38.21617442]
[1765552808315,7.96,137.52,137.47,25.46003428]
[1765552808493,7.96,137.52,137.48,12.75614014]
[1765552808899,7.96,137.52,137.5,12.75614014]
[1765552809091,7.96,137.52,137.51,12.75614014]
[1765552809531,7.96,137.55,137.51,12.75614014]
[1765552809712,20.71614014,137.55,137.48,12.75614014]
[1765552809923,12.75614014,137.52,137.47,7.2742483]
[1765552810222,7.96,137.51,137.47,7.2742483]
[1765552811290,7.96,137.51,137.47,38.21617442]
[1765552811526,7.96,137.51,137.48,12.75614014]
[1765552812055,7.96,137.51,137.5,12.75614014]
[1765552812189,7.96,137.54,137.5,12.75614014]
[1765552812392,7.96,137.54,137.51,12.75614014]
[1765552813144,7.96,137.54,137.48,12.75614014]
[1765552813145,20.71614014,137.54,137.48,12.75614014]
[1765552813323,7.96,137.54,137.49,7.27325623]
[1765552813498,20.71614014,137.54,137.49,7.27325623]
[1765552813920,7.96,137.54,137.49,7.27325623]
[1765552814122,7.96,137.54,137.49,20.02939637]
[1765552814426,7.96,137.54,137.49,25.45639682]
[1765552814906,7.96,137.54,137.49,38.21253696]
[1765552815315,7.96,137.54,137.52,7.27166957]
[1765552815539,7.96,137.54,137.51,7.27205412]
[1765552815720,15.23066738,137.54,137.48,12.75614014]
[1765552815899,27.98680752,137.54,137.49,7.27282552]
[1765552816317,15.23066738,137.54,137.5,7.27257875]
[1765552816527,7.96,137.54,137.51,7.27198677]
[1765552817103,12.75614014,137.53,137.45,49.42163075]
[1765552817312,7.27219838,137.51,137.45,13.0470912]
[1765552817528,7.96,137.5,137.46,7.27484359]
[1765552817699,20.71614014,137.5,137.45,7.27524999]
[1765552818029,7.96,137.5,137.45,7.27524999]
[1765552819134,12.7830868,137.47,137.42,7.27689702]
[1765552819426,12.7830868,137.47,137.37,45.20607768]
[1765552819427,20.05894229,137.45,137.38,12.7830868]
[1765552819606,20.05894229,137.45,137.39,12.7830868]
[1765552819807,7.96,137.46,137.4,12.7830868]
[1765552820013,28.0179656,137.46,137.4,12.7830868]
[1765552820726,28.0179656,137.46,137.39,12.7830868]
[1765552820904,12.7830868,137.45,137.39,12.7830868]
[1765552821102,20.05870731,137.45,137.38,12.7830868]
[1765552821517,20.05870731,137.45,137.37,7.27960981]
[1765552821518,12.7830868,137.42,137.37,7.27960981]
[1765552821713,7.27562051,137.45,137.37,20.06269661]
[1765552821714,7.96,137.41,137.37,20.06269661]
[1765552821917,7.96,137.41,137.38,12.7830868]
[1765552822637,7.96,137.41,137.39,12.7830868]
[1765552822815,7.96,137.41,137.39,13.2930868]
[1765552823148,7.96,137.44,137.41,7.27749072]
[1765552823605,7.96,137.44,137.41,38.25430432]
[1765552824831,7.96,137.44,137.43,12.7830868]
[1765552825007,7.96,137.47,137.44,7.27590221]
[1765552825313,12.7830868,137.5,137.44,25.46565773]
[1765552825635,20.7430868,137.51,137.44,38.24874453]
[1765552825934,13.4930868,137.5,137.44,38.24874453]
[1765552826228,13.4930868,137.5,137.44,25.46565773]
[1765552826430,0.71,137.49,137.44,38.24874453]
[1765552826629,0.71,137.49,137.44,25.46565773]
[1765552826827,20.05605533,137.5,137.44,25.46565773]
[1765552826828,28.68547299,137.51,137.45,12.7830868]
[1765552827010,13.4530868,137.5,137.44,25.46565773]
[1765552827210,13.4530868,137.5,137.44,38.24874453]
[1765552827412,0.67,137.5,137.45,12.7830868]
[1765552827618,7.96,137.51,137.47,12.7830868]
[1765552827826,7.96,137.51,137.45,0.79432314]
[1765552828025,8.63,137.51,137.46,12.7830868]
[1765552828214,8.63,137.51,137.47,12.7830868]
[1765552828428,8.63,137.51,137.48,7.27378527]
[1765552830035,0.67,137.54,137.5,12.7830868]
[1765552830237,0.67,137.54,137.48,38.24133526]
[1765552830238,21.4130868,137.54,137.48,38.24133526]
[1765552830546,15.23097766,137.54,137.48,20.56687207]
[1765552830734,15.90097766,137.54,137.48,20.56687207]
[1765552831057,20.72069616,137.6,137.53,12.7830868]
[1765552831358,8.63,137.59,137.55,12.7830868]
[1765552831726,0.67,137.58,137.53,12.7830868]
[1765552831927,0.67,137.58,137.51,9.60426806]
[1765552832356,0.67,137.58,137.54,7.27061218]
[1765552833156,0.67,137.58,137.54,20.05369898]
[1765552833353,0.67,137.58,137.54,38.23022944]
[1765552833656,0.67,137.58,137.54,7.27061218]
[1765552833830,15.22806274,137.59,137.54,7.27061218]
[1765552833831,7.96,137.59,137.54,7.27061218]
[1765552834031,0.67,137.58,137.54,7.27061218]
[1765552834336,12.7830868,137.57,137.52,7.27128691]
[1765552834538,12.7830868,137.55,137.48,30.96724057]
[1765552834745,20.7430868,137.54,137.48,30.96724057]
[1765552834954,20.7430868,137.54,137.48,44.01433177]
[1765552835148,8.63,137.54,137.48,30.96724057]
[1765552835354,8.63,137.54,137.49,12.7830868]
[1765552835751,0.67,137.53,137.47,8.47]
[1765552835961,0.67,137.53,137.47,20.7430868]
[1765552836154,13.4530868,137.53,137.48,7.2737034]
[1765552836562,0.67,137.52,137.48,7.2737034]
[1765552837038,0.67,137.52,137.49,7.27318929]
[1765552837244,12.7830868,137.53,137.49,7.27318929]
[1765552837442,0.67,137.52,137.49,7.27318929]
[1765552837858,0.67,137.52,137.48,7.27378527]
[1765552838048,7.96,137.54,137.49,12.7830868]
[1765552838241,7.96,137.54,137.51,12.7830868]
[1765552838556,0.67,137.53,137.48,7.27378527]
[1765552838864,13.4530868,137.53,137.48,7.27378527]
[1765552839066,0.67,137.6,137.51,13.0470912]
[1765552839242,0.67,137.6,137.56,12.7830868]
[1765552839436,15.22667709,137.62,137.57,12.7830868]
[1765552839437,7.96,137.62,137.57,12.7830868]
[1765552839848,8.63,137.62,137.58,7.26849832]
[1765552840653,8.63,137.62,137.58,20.05158512]
[1765552841045,8.63,137.62,137.58,7.26849832]
[1765552841259,8.63,137.62,137.6,12.7830868]
[1765552841439,15.89642676,137.62,137.58,7.26849832]
[1765552841661,8.63,137.62,137.59,12.7830868]
[1765552841836,7.96,137.62,137.61,12.7830868]
[1765552842140,8.63,137.62,137.6,12.7830868]
[1765552842544,8.63,137.62,137.58,7.26835404]
[1765552842754,8.63,137.62,137.59,20.05093082]
[1765552842938,8.63,137.62,137.6,12.7830868]
[1765552843438,15.89651904,137.62,137.59,12.7830868]
[1765552843861,8.63,137.62,137.59,12.7830868]
[1765552844064,8.63,137.62,137.6,12.7830868]
[1765552844446,9.47994492,137.61,137.55,7.2695929]
[1765552844668,9.47994492,137.61,137.49,0.51]
[1765552844669,12.7830868,137.59,137.49,0.51]
[1765552844855,20.7430868,137.58,137.52,12.7830868]
[1765552845045,0.67,137.57,137.52,12.7830868]
[1765552845242,0.67,137.57,137.51,18.17963484]
[1765552845443,0.67,137.57,137.51,12.7830868]
[1765552845444,8.80994492,137.56,137.51,12.7830868]
[1765552845647,21.59303172,137.56,137.5,20.05581407]
[1765552845859,7.94053153,137.55,137.51,7.85992571]
[1765552846069,7.96,137.54,137.51,7.85992571]
[1765552846244,8.63,137.54,137.51,15.13209931]
[1765552846565,7.96,137.54,137.52,7.85992571]
[1765552846966,8.63,137.54,137.52,7.85992571]
[1765552847463,0.67,137.54,137.53,7.85992571]
[1765552847650,8.63,137.54,137.53,7.85992571]
[1765552847851,8.63,137.54,137.52,7.85992571]
[1765552848569,7.96,137.53,137.51,7.85992571]
[1765552848740,0.67,137.54,137.51,7.85992571]
[1765552848945,7.96,137.53,137.51,7.85992571]
[1765552849275,0.67,137.56,137.52,7.85992571]
[1765552849448,7.96,137.55,137.52,7.85992571]
[1765552849642,0.67,137.54,137.5,7.85992571]
[1765552849842,0.67,137.54,137.49,7.85992571]
[1765552849843,13.7170912,137.54,137.49,7.85992571]
[1765552850282,0.72,137.53,137.49,15.13303005]
[1765552850641,0.72,137.53,137.5,7.85992571]
[1765552850856,0.72,137.53,137.51,7.85992571]
[1765552851060,28.27733741,137.55,137.51,7.85992571]
[1765552851263,0.72,137.54,137.51,7.85992571]
[1765552851468,0.72,137.54,137.49,25.45624493]
[1765552851664,0.72,137.54,137.51,7.85992571]
[1765552852102,13.0470912,137.55,137.53,7.85992571]
[1765552852474,7.96,137.54,137.51,15.13194633]
[1765552852675,8.68,137.54,137.47,31.23245521]
[1765552852867,8.68,137.54,137.5,7.85992571]
[1765552853169,8.68,137.54,137.52,7.85992571]
[1765552853391,8.68,137.54,137.52,15.13155821]
[1765552853561,8.68,137.54,137.52,7.85992571]
[1765552853757,7.96,137.54,137.52,7.85992571]
[1765552854264,0.72,137.53,137.51,15.13197203]
[1765552854464,0.72,137.53,137.5,15.13245519]
[1765552855073,0.72,137.53,137.51,7.85992571]
[1765552855565,7.96,137.54,137.52,7.85992571]
[1765552855757,7.96,137.54,137.49,0.51]
[1765552855758,0.72,137.53,137.5,7.27253355]
[1765552855961,0.72,137.53,137.51,15.13324161]
[1765552856178,7.96,137.54,137.52,15.13261742]
[1765552856378,7.96,137.54,137.53,7.86110986]
[1765552856578,8.68,137.54,137.53,7.86110986]
[1765552856778,8.68,137.54,137.52,15.13261742]
[1765552857387,7.96,137.54,137.52,7.27150756]
[1765552857562,7.96,137.54,137.53,7.86110986]
[1765552858363,7.96,137.54,137.52,7.27150756]
[1765552858567,7.96,137.54,137.53,7.86110986]
[1765552858769,7.96,137.54,137.52,15.13261742]
[1765552859662,7.96,137.54,137.5,18.69111917]
[1765552859663,8.68,137.54,137.51,7.27206608]
[1765552860065,8.68,137.54,137.51,15.13317594]
[1765552860263,7.96,137.54,137.52,7.86110986]
[1765552860492,0.72,137.53,137.5,7.27267219]
[1765552860806,0.72,137.53,137.49,7.27275388]
[1765552861087,8.58110986,137.53,137.47,7.86110986]
[1765552861286,8.58110986,137.53,137.46,7.86110986]
[1765552861287,16.67105478,137.52,137.46,7.86110986]
[1765552861487,15.82110986,137.51,137.44,7.86110986]
[1765552861805,29.58820106,137.51,137.44,7.27570783]
[1765552862141,0.72,137.5,137.46,7.86110986]
[1765552862262,7.9929237,137.5,137.46,7.86110986]
[1765552862661,0.72,137.49,137.46,15.13590073]
[1765552862904,7.96,137.48,137.46,15.13590073]
[1765552863103,7.96,137.48,137.47,7.86110986]
[1765552863418,7.96,137.53,137.47,8.37110986]
[1765552863573,7.96,137.53,137.52,7.86110986]
[1765552863775,8.68,137.53,137.51,7.86110986]
[1765552863974,8.68,137.53,137.47,0.79432314]
[1765552864216,0.72,137.58,137.52,7.86110986]
[1765552864508,7.96,137.57,137.56,7.86110986]
[1765552865504,0.72,137.62,137.56,7.86110986]
[1765552865804,7.96,137.61,137.6,7.86110986]
[1765552866008,7.26446471,137.66,137.6,7.86110986]
[1765552866184,7.26446471,137.66,137.56,0.28432314]
[1765552866185,7.96,137.65,137.63,7.86110986]
[1765552866580,8.68,137.65,137.63,7.86110986]
[1765552866778,7.96,137.65,137.63,7.86110986]
[1765552867294,17.39105478,137.64,137.57,7.26865277]
[1765552867597,0.72,137.63,137.58,7.86110986]
[1765552867792,7.96,137.62,137.58,7.26838839]
[1765552867989,7.96,137.62,137.58,15.12949825]
[1765552868187,0.72,137.61,137.59,7.86110986]
[1765552868598,0.72,137.61,137.56,7.2695551]
[1765552868804,0.72,137.61,137.58,7.86110986]
[1765552869310,34.01536195,137.61,137.53,0.51]
[1765552869513,34.01536195,137.61,137.56,7.86110986]
[1765552869806,0.72,137.6,137.56,7.86110986]
[1765552869979,7.96,137.59,137.56,7.86110986]
[1765552870394,8.68,137.59,137.56,7.86110986]
[1765552870706,0.72,137.58,137.52,7.86110986]
[1765552870911,8.80994492,137.57,137.53,7.86110986]
[1765552871106,7.96,137.56,137.53,7.86110986]
[1765552871286,8.68,137.56,137.53,7.86110986]
[1765552871492,8.68,137.56,137.52,7.86110986]
[1765552871493,0.72,137.55,137.52,7.86110986]
[1765552871701,0.72,137.55,137.5,25.4536598]
[1765552871876,0.72,137.55,137.53,7.86110986]